fUSD/lending_fUSD_20240704
["ID","MTS","AMOUNT","RATE_DAILY","PERIOD"]
[331072065,1720063842744,-700.0,0.0002147,2]
[331072068,1720063842754,-700.0,0.0002147,2]
[331072070,1720063842764,-402.00499623,0.0002147,2]
[331072072,1720063842775,-835.91619859,0.0002147,2]
[331072073,1720063842784,-66960.09829322,0.00021472,2]
[331072075,1720063842794,-364.15303,0.00021472,2]
[331072077,1720063842804,-364.15303,0.00021472,2]
[331072079,1720063842814,-151.0,0.00021472,2]
[331072081,1720063842824,-151.0,0.00021472,2]
[331072083,1720063842834,-250.0,0.000215,30]
[331072085,1720063842847,-3128.79331985,0.00021548,2]
[331072087,1720063842858,-8271.30148148,0.00021553,2]
[331072089,1720063842868,-172.46,0.00021597,2]
[331072092,1720063842879,-283.15719,0.00021603,2]
[331072094,1720063842890,-151.0,0.00021603,2]
[331072096,1720063842899,-175.128304,0.00021603,2]
[331072098,1720063842909,-175.128304,0.00021603,2]
[331072099,1720063842919,-500.0,0.00021644,2]
[331072101,1720063842930,-277.38,0.00021644,2]
[331072103,1720063842939,-445.63,0.00021644,2]
[331072105,1720063842949,-151.49,0.00021644,2]
[331072107,1720063842961,-157.98,0.00021644,2]
[331072110,1720063842973,-151.0,0.00021644,2]
[331072111,1720063842982,-151.0,0.00021644,2]
[331072113,1720063842992,-151.0,0.00021644,2]
[331072115,1720063843002,-151.0,0.00021644,2]
[331072117,1720063843012,-151.0,0.00021644,2]
[331072118,1720063843022,-151.0,0.00021644,2]
[331072119,1720063843032,-151.0,0.00021644,2]
[331072120,1720063843041,-151.0,0.00021644,2]
[331072121,1720063843051,-2100.0,0.00021659,2]
[331072122,1720063843060,-197.0,0.0002167,3]
[331072123,1720063843070,-500.0,0.00021743,2]
[331072124,1720063843080,-289.02897465,0.00021759,2]
[331072125,1720063843090,-3173.3999109,0.00021769,2]
[331072126,1720063843101,-401.52,0.0002177,2]
[331072127,1720063843112,-716.7434968,0.00021799,2]
[331072128,1720063843121,-2000.0,0.000218,7]
[331072129,1720063843132,-155.0,0.00021804,2]
[331072130,1720063843142,-155.0,0.00021804,2]
[331072131,1720063843152,-551404.4654002,0.00021811,7]
[331072132,1720063843162,-150.0,0.00021811,2]
[331072133,1720063843172,-10000.0,0.00021817,2]
[331072134,1720063843182,-520.01,0.00021823,2]
[331072135,1720063843192,-500.0,0.00021828,2]
[331072136,1720063843202,-200.0,0.00021828,2]
[331072137,1720063843211,-150.0,0.00021829,2]
[331072138,1720063843220,-150.0,0.00021839,2]
[331072139,1720063843230,-167.88520025,0.00021845,2]
[331072140,1720063843240,-500.0,0.00021847,2]
[331072141,1720063843250,-500.0,0.00021855,2]
[331072142,1720063843260,-151.0,0.00021858,2]
[331072143,1720063843270,-155.27427709,0.00021861,3]
[331072144,1720063843280,-155.27427709,0.00021861,3]
[331072145,1720063843290,-500.0,0.00021864,2]
[331072146,1720063843300,-150.0,0.00021865,2]
[331072148,1720063843309,-150.0,0.00021866,2]
[331072149,1720063843320,-700.0,0.0002187,2]
[331072151,1720063843330,-700.0,0.0002187,2]
[331072153,1720063843338,-700.0,0.0002187,2]
[331072155,1720063843347,-400.0,0.0002187,2]
[331072157,1720063843357,-400.0,0.0002187,2]
[331072158,1720063843367,-400.0,0.0002187,2]
[331072159,1720063843377,-150.0,0.0002187,2]
[331072160,1720063843386,-150.0,0.00021872,2]
[331072161,1720063843396,-500.0,0.00021873,2]
[331072162,1720063843406,-500.0,0.00021873,2]
[331072163,1720063843415,-152.0,0.00021874,5]
[331072164,1720063843425,-150.0,0.00021881,2]
[331072165,1720063843434,-500.0,0.00021882,2]
[331072166,1720063843444,-500.0,0.00021882,2]
[331072167,1720063843454,-151.0,0.00021882,2]
[331072168,1720063843463,-150.0,0.00021888,2]
[331072169,1720063843473,-500.0,0.0002189,2]
[331072170,1720063843482,-500.0,0.00021891,2]
[331072171,1720063843492,-500.0,0.00021891,2]
[331072172,1720063843501,-150.0,0.00021891,2]
[331072173,1720063843510,-150.0,0.00021891,2]
[331072174,1720063843520,-151.0,0.00021895,2]
[331072175,1720063843529,-151.0,0.00021895,2]
[331072176,1720063843539,-190.26350173,0.00021895,2]
[331072177,1720063843549,-663.12588482,0.00021895,2]
[331072178,1720063843559,-2693.10870116,0.00021895,2]
[331072179,1720063843568,-150.0,0.00021896,2]
[331072180,1720063843578,-500.0,0.00021899,2]
[331072181,1720063843588,-500.0,0.00021899,2]
[331072182,1720063843597,-400.0,0.000219,7]
[331072183,1720063843607,-2000.0,0.000219,2]
[331072184,1720063843617,-1350.03089082,0.000219,2]
[331072185,1720063843626,-600.0,0.000219,2]
[331072186,1720063843635,-1012.18,0.000219,2]
[331072187,1720063843644,-1012.18,0.000219,2]
[331072188,1720063843653,-305.62,0.000219,2]
[331072189,1720063843663,-275.735225,0.000219,2]
[331072190,1720063843672,-150.0,0.00021901,2]
[331072191,1720063843682,-150.0,0.00021901,2]
[331072192,1720063843692,-150.0,0.00021903,2]
[331072193,1720063843701,-150.0,0.00021906,2]
[331072194,1720063843711,-500.0,0.00021908,2]
[331072195,1720063843721,-500.0,0.00021908,2]
[331072196,1720063843730,-150.0,0.0002191,2]
[331072197,1720063843739,-500.0,0.00021912,2]
[331072198,1720063843749,-200.0,0.00021912,2]
[331072199,1720063843759,-151.0,0.00021916,2]
[331072200,1720063843768,-151.0,0.00021916,2]
[331072201,1720063843778,-150.0,0.00021916,7]
[331072202,1720063843787,-150.0,0.00021916,7]
[331072203,1720063843797,-150.0,0.00021916,7]
[331072204,1720063843806,-150.0,0.00021916,7]
[331072207,1720063843816,-500.0,0.00021917,2]
[331072209,1720063843826,-633.68032522,0.00021917,4]
[331072213,1720063843836,-500.0,0.00021917,4]
[331072217,1720063843850,-498.48115019,0.00021917,4]
[331072220,1720063843859,-499.00024359,0.00021917,4]
[331072222,1720063843869,-501.37328345,0.00021917,4]
[331072223,1720063843879,-500.80623039,0.00021917,4]
[331072224,1720063843889,-1006.23371059,0.00021917,2]
[331072225,1720063843899,-500.0,0.00021917,4]
[331072226,1720063843908,-500.0,0.00021917,4]
[331072227,1720063843918,-500.0,0.00021917,4]
[331072228,1720063843930,-500.0,0.00021917,4]
[331072229,1720063843940,-500.0,0.00021917,4]
[331072230,1720063843950,-500.0,0.00021917,4]
[331072231,1720063843959,-500.0,0.00021917,4]
[331072232,1720063843971,-500.0,0.00021917,4]
[331072233,1720063843981,-500.0,0.00021917,4]
[331072234,1720063843990,-500.0,0.00021917,4]
[331072235,1720063844000,-500.0,0.00021917,4]
[331072236,1720063844010,-500.0,0.00021917,4]
[331072237,1720063844019,-500.0,0.00021917,4]
[331072238,1720063844029,-500.0,0.00021917,4]
[331072239,1720063844038,-500.0,0.00021917,4]
[331072240,1720063844047,-578.99262499,0.00021917,4]
[331072241,1720063844057,-367.5926869,0.00021917,4]
[331072242,1720063844067,-500.0,0.00021917,4]
[331072243,1720063844078,-500.0,0.00021917,4]
[331072244,1720063844088,-500.0,0.00021917,4]
[331072245,1720063844097,-500.0,0.00021917,4]
[331072246,1720063844109,-500.0,0.00021917,4]
[331072247,1720063844118,-500.0,0.00021917,4]
[331072248,1720063844128,-500.0,0.00021917,4]
[331072249,1720063844138,-500.0,0.00021917,4]
[331072250,1720063844147,-500.0,0.00021917,4]
[331072251,1720063844157,-500.0,0.00021917,4]
[331072252,1720063844167,-500.0,0.00021917,4]
[331072253,1720063844176,-582.06116374,0.00021917,4]
[331072254,1720063844186,-502.9681179,0.00021917,4]
[331072255,1720063844196,-503.43255713,0.00021917,4]
[331072256,1720063844205,-500.0,0.00021917,4]
[331072257,1720063844215,-500.0,0.00021917,4]
[331072258,1720063844225,-500.0,0.00021917,4]
[331072259,1720063844234,-511.81615695,0.00021917,4]
[331072260,1720063844244,-500.0,0.00021917,4]
[331072261,1720063844254,-500.0,0.00021917,4]
[331072262,1720063844264,-500.0,0.00021917,4]
[331072263,1720063844274,-590.7231091,0.00021917,4]
[331072264,1720063844284,-500.0,0.00021917,4]
[331072265,1720063844293,-514.03465028,0.00021917,4]
[331072266,1720063844303,-633.93888528,0.00021917,4]
[331072267,1720063844312,-500.0,0.00021917,4]
[331072268,1720063844322,-504.73780451,0.00021917,4]
[331072269,1720063844332,-505.53665863,0.00021917,4]
[331072270,1720063844342,-506.51001995,0.00021917,4]
[331072271,1720063844351,-506.681853,0.00021917,4]
[331072272,1720063844362,-502.43479564,0.00021917,4]
[331072273,1720063844371,-502.62948567,0.00021917,4]
[331072274,1720063844381,-507.56256375,0.00021917,4]
[331072275,1720063844390,-500.0,0.00021917,4]
[331072276,1720063844400,-506.28390984,0.00021917,4]
[331072277,1720063844409,-710.98,0.00021917,4]
[331072278,1720063844419,-710.98,0.00021917,4]
[331072279,1720063844428,-710.98,0.00021917,4]
[331072280,1720063844438,-710.98,0.00021917,4]
[331072281,1720063844447,-710.98,0.00021917,4]
[331072282,1720063844457,-505.52475878,0.00021917,4]
[331072283,1720063844467,-710.98,0.00021917,4]
[331072284,1720063844476,-710.98,0.00021917,4]
[331072285,1720063844485,-710.98,0.00021917,4]
[331072286,1720063844495,-710.98,0.00021917,4]
[331072287,1720063844504,-710.98,0.00021917,4]
[331072289,1720063844513,-710.98,0.00021917,4]
[331072291,1720063844523,-710.98,0.00021917,4]
[331072292,1720063844532,-710.98,0.00021917,4]
[331072293,1720063844542,-710.98,0.00021917,4]
[331072294,1720063844552,-520.80629713,0.00021917,4]
[331072295,1720063844561,-710.98,0.00021917,4]
[331072296,1720063844571,-710.98,0.00021917,4]
[331072297,1720063844580,-710.98,0.00021917,4]
[331072298,1720063844590,-710.98,0.00021917,4]
[331072299,1720063844599,-710.98,0.00021917,4]
[331072300,1720063844609,-710.98,0.00021917,4]
[331072301,1720063844619,-507.5840883,0.00021917,4]
[331072303,1720063844629,-710.98,0.00021917,4]
[331072305,1720063844638,-710.98,0.00021917,4]
[331072310,1720063844648,-710.98,0.00021917,4]
[331072311,1720063844702,-711.11011733,0.00021917,4]
[331072312,1720063844711,-500.0,0.00021917,4]
[331072313,1720063844721,-554.53495731,0.00021917,4]
[331072314,1720063844731,-511.04314235,0.00021917,4]
[331072315,1720063844740,-502.29171408,0.00021917,2]
[331072316,1720063844749,-500.0,0.00021917,4]
[331072317,1720063844758,-500.0,0.00021917,4]
[331072318,1720063844768,-500.0,0.00021917,4]
[331072319,1720063844777,-341.07058854,0.00021917,4]
[331072320,1720063844787,-513.16875433,0.00021917,4]
[331072321,1720063844797,-500.0,0.00021917,4]
[331072322,1720063844806,-500.0,0.00021917,4]
[331072323,1720063844816,-500.0,0.00021917,4]
[331072324,1720063844825,-500.0,0.00021917,4]
[331072325,1720063844834,-504.03365382,0.00021917,4]
[331072326,1720063844849,-500.0,0.00021917,4]
[331072327,1720063844859,-500.0,0.00021917,4]
[331072328,1720063844869,-500.0,0.00021917,4]
[331072329,1720063844878,-505.35001182,0.00021917,4]
[331072330,1720063844890,-500.0,0.00021917,4]
[331072331,1720063844899,-500.0,0.00021917,4]
[331072332,1720063844908,-500.0,0.00021917,4]
[331072333,1720063844919,-500.0,0.00021917,4]
[331072334,1720063844929,-502.46985707,0.00021917,4]
[331072335,1720063844938,-500.0,0.00021917,4]
[331072336,1720063844947,-507.0847514,0.00021917,4]
[331072337,1720063844957,-500.0,0.00021917,4]
[331072338,1720063844968,-500.0,0.00021917,4]
[331072339,1720063844978,-503.98375976,0.00021917,4]
[331072340,1720063844988,-297.64488008,0.00021917,4]
[331072341,1720063844998,-500.0,0.00021917,4]
[331072342,1720063845008,-500.0,0.00021917,4]
[331072343,1720063845017,-160.44892916,0.00021917,4]
[331072344,1720063845027,-506.07525969,0.00021917,4]
[331072345,1720063845037,-515.08408521,0.00021917,4]
[331072346,1720063845047,-500.0,0.00021917,4]
[331072347,1720063845056,-510.3507951,0.00021917,4]
[331072348,1720063845066,-500.0,0.00021917,4]
[331072349,1720063845075,-500.0,0.00021917,4]
[331072350,1720063845085,-500.0,0.00021917,4]
[331072351,1720063845094,-500.0,0.00021917,4]
[331072352,1720063845103,-500.0,0.00021917,4]
[331072353,1720063845116,-500.0,0.00021917,4]
[331072354,1720063845126,-500.0,0.00021917,4]
[331072355,1720063845136,-500.0,0.00021917,4]
[331072356,1720063845146,-500.0,0.00021917,4]
[331072357,1720063845155,-500.0,0.00021917,4]
[331072358,1720063845165,-500.0,0.00021917,4]
[331072359,1720063845174,-500.0,0.00021917,4]
[331072360,1720063845183,-500.0,0.00021917,4]
[331072361,1720063845192,-500.0,0.00021917,4]
[331072362,1720063845202,-500.0,0.00021917,4]
[331072363,1720063845211,-500.0,0.00021917,4]
[331072364,1720063845221,-599.5317362,0.00021917,4]
[331072365,1720063845230,-500.0,0.00021917,4]
[331072366,1720063845240,-500.0,0.00021917,4]
[331072367,1720063845249,-500.0,0.00021917,4]
[331072368,1720063845258,-554.86081007,0.00021917,4]
[331072369,1720063845268,-500.0,0.00021917,4]
[331072370,1720063845278,-500.0,0.00021917,4]
[331072371,1720063845287,-500.0,0.00021917,4]
[331072372,1720063845297,-500.0,0.00021917,4]
[331072373,1720063845306,-500.0,0.00021917,4]
[331072374,1720063845315,-500.0,0.00021917,4]
[331072375,1720063845324,-500.0,0.00021917,4]
[331072376,1720063845334,-500.0,0.00021917,4]
[331072377,1720063845343,-500.0,0.00021917,4]
[331072378,1720063845352,-500.0,0.00021917,4]
[331072379,1720063845363,-500.0,0.00021917,4]
[331072380,1720063845371,-500.0,0.00021917,4]
[331072381,1720063845380,-500.0,0.00021917,4]
[331072382,1720063845390,-500.0,0.00021917,4]
[331072383,1720063845399,-500.0,0.00021917,4]
[331072384,1720063845408,-500.0,0.00021917,4]
[331072385,1720063845418,-500.0,0.00021917,4]
[331072386,1720063845427,-500.0,0.00021917,4]
[331072387,1720063845437,-288.49764283,0.00021917,4]
[331072388,1720063845447,-500.0,0.00021917,4]
[331072389,1720063845456,-500.0,0.00021917,4]
[331072390,1720063845466,-500.0,0.00021917,4]
[331072391,1720063845476,-485.28268262,0.00021917,4]
[331072392,1720063845485,-543.74815365,0.00021917,4]
[331072393,1720063845495,-505.68561788,0.00021917,4]
[331072394,1720063845504,-500.0,0.00021917,4]
[331072395,1720063845513,-500.0,0.00021917,4]
[331072396,1720063845523,-500.0,0.00021917,4]
[331072397,1720063845533,-500.0,0.00021917,4]
[331072398,1720063845542,-500.0,0.00021917,4]
[331072399,1720063845551,-500.0,0.00021917,4]
[331072400,1720063845560,-628.41254252,0.00021917,4]
[331072401,1720063845570,-500.0,0.00021917,4]
[331072402,1720063845579,-500.0,0.00021917,4]
[331072403,1720063845588,-500.0,0.00021917,4]
[331072404,1720063845598,-500.0,0.00021917,4]
[331072405,1720063845607,-500.0,0.00021917,4]
[331072406,1720063845617,-503.04658039,0.00021917,4]
[331072407,1720063845627,-500.0,0.00021917,4]
[331072408,1720063845636,-500.0,0.00021917,4]
[331072409,1720063845646,-506.15148484,0.00021917,4]
[331072410,1720063845655,-629.09802674,0.00021917,4]
[331072411,1720063845664,-177.34712338,0.00021917,4]
[331072412,1720063845674,-546.79875017,0.00021917,4]
[331072413,1720063845683,-504.87211376,0.00021917,4]
[331072414,1720063845692,-500.89876339,0.00021917,4]
[331072415,1720063845702,-505.91871616,0.00021917,4]
[331072416,1720063845711,-500.59399842,0.00021917,4]
[331072417,1720063845720,-516.10706057,0.00021917,4]
[331072418,1720063845729,-500.0,0.00021917,4]
[331072419,1720063845737,-258.66169575,0.00021917,4]
[331072420,1720063845747,-266.30017285,0.00021917,4]
[331072421,1720063845757,-500.0,0.00021917,4]
[331072422,1720063845767,-511.52028364,0.00021917,4]
[331072423,1720063845776,-500.0,0.00021917,4]
[331072424,1720063845786,-500.0,0.00021917,4]
[331072425,1720063845795,-500.0,0.00021917,4]
[331072426,1720063845804,-500.0,0.00021917,4]
[331072427,1720063845814,-500.0,0.00021917,4]
[331072428,1720063845823,-500.0,0.00021917,4]
[331072429,1720063845833,-500.0,0.00021917,4]
[331072430,1720063845845,-500.0,0.00021917,4]
[331072431,1720063845854,-500.0,0.00021917,4]
[331072432,1720063845866,-500.0,0.00021917,4]
[331072433,1720063845875,-519.35370479,0.00021917,4]
[331072434,1720063845884,-500.0,0.00021917,4]
[331072435,1720063845894,-494.69481786,0.00021917,4]
[331072436,1720063845906,-500.0,0.00021917,4]
[331072437,1720063845915,-377.56140037,0.00021917,4]
[331072438,1720063845929,-500.0,0.00021917,4]
[331072439,1720063845939,-500.0,0.00021917,4]
[331072440,1720063845948,-500.0,0.00021917,4]
[331072441,1720063845958,-500.0,0.00021917,4]
[331072442,1720063845968,-500.0,0.00021917,4]
[331072443,1720063845978,-502.87826849,0.00021917,4]
[331072444,1720063845987,-500.0,0.00021917,4]
[331072445,1720063845996,-500.0,0.00021917,4]
[331072446,1720063846005,-500.0,0.00021917,4]
[331072447,1720063846015,-500.0,0.00021917,4]
[331072448,1720063846024,-500.0,0.00021917,4]
[331072449,1720063846034,-500.0,0.00021917,4]
[331072450,1720063846043,-181.81187613,0.00021917,4]
[331072451,1720063846052,-503.230906,0.00021917,4]
[331072452,1720063846061,-240.82660031,0.00021917,4]
[331072453,1720063846070,-504.82835803,0.00021917,4]
[331072454,1720063846081,-500.0,0.00021917,4]
[331072455,1720063846090,-487.76854769,0.00021917,4]
[331072456,1720063846100,-504.06341037,0.00021917,4]
[331072457,1720063846110,-500.0,0.00021917,4]
[331072458,1720063846122,-623.88844411,0.00021917,4]
[331072459,1720063846131,-500.0,0.00021917,4]
[331072460,1720063846139,-500.0,0.00021917,4]
[331072461,1720063846148,-500.0,0.00021917,4]
[331072462,1720063846157,-371.17904469,0.00021917,4]
[331072463,1720063846166,-500.0,0.00021917,4]
[331072464,1720063846175,-500.0,0.00021917,4]
[331072465,1720063846185,-500.0,0.00021917,4]
[331072466,1720063846194,-500.0,0.00021917,4]
[331072467,1720063846204,-500.0,0.00021917,4]
[331072468,1720063846213,-510.79350082,0.00021917,4]
[331072469,1720063846223,-500.0,0.00021917,4]
[331072470,1720063846232,-500.0,0.00021917,4]
[331072471,1720063846241,-500.0,0.00021917,4]
[331072472,1720063846251,-500.0,0.00021917,4]
[331072473,1720063846260,-500.0,0.00021917,4]
[331072474,1720063846269,-500.0,0.00021917,4]
[331072475,1720063846279,-296.38139219,0.00021917,4]
[331072476,1720063846288,-500.0,0.00021917,4]
[331072477,1720063846298,-509.35808709,0.00021917,4]
[331072478,1720063846307,-507.39835994,0.00021917,4]
[331072479,1720063846317,-501.09734164,0.00021917,2]
[331072480,1720063846326,-500.0,0.00021917,4]
[331072481,1720063846335,-500.0,0.00021917,4]
[331072482,1720063846344,-500.0,0.00021917,4]
[331072483,1720063846354,-500.0,0.00021917,4]
[331072484,1720063846374,-500.0,0.00021917,4]
[331072485,1720063846384,-500.0,0.00021917,4]
[331072486,1720063846394,-508.95446322,0.00021917,4]
[331072487,1720063846403,-500.0,0.00021917,4]
[331072488,1720063846412,-500.0,0.00021917,4]
[331072489,1720063846421,-500.0,0.00021917,4]
[331072490,1720063846430,-500.0,0.00021917,4]
[331072491,1720063846440,-500.0,0.00021917,4]
[331072492,1720063846449,-500.0,0.00021917,4]
[331072493,1720063846458,-500.0,0.00021917,4]
[331072494,1720063846467,-500.0,0.00021917,4]
[331072495,1720063846476,-500.0,0.00021917,4]
[331072496,1720063846485,-505.26025126,0.00021917,4]
[331072497,1720063846494,-470.47794738,0.00021917,4]
[331072498,1720063846503,-500.0,0.00021917,4]
[331072499,1720063846513,-500.0,0.00021917,4]
[331072500,1720063846522,-500.0,0.00021917,4]
[331072501,1720063846531,-500.0,0.00021917,4]
[331072502,1720063846540,-500.0,0.00021917,4]
[331072503,1720063846550,-500.0,0.00021917,4]
[331072504,1720063846559,-500.0,0.00021917,4]
[331072505,1720063846568,-500.0,0.00021917,4]
[331072506,1720063846578,-500.0,0.00021917,4]
[331072507,1720063846587,-500.0,0.00021917,4]
[331072508,1720063846596,-500.0,0.00021917,4]
[331072509,1720063846605,-544.02718944,0.00021917,4]
[331072510,1720063846619,-501.47614732,0.00021917,4]
[331072511,1720063846628,-500.0,0.00021917,4]
[331072512,1720063846638,-500.0,0.00021917,4]
[331072513,1720063846647,-500.0,0.00021917,4]
[331072514,1720063846657,-531.56822254,0.00021917,4]
[331072515,1720063846667,-503.57869227,0.00021917,4]
[331072516,1720063846676,-408.98963927,0.00021917,4]
[331072517,1720063846686,-517.60890739,0.00021917,4]
[331072518,1720063846695,-500.0,0.00021917,4]
[331072519,1720063846705,-500.0,0.00021917,4]
[331072521,1720063846714,-500.0,0.00021917,4]
[331072523,1720063846724,-500.0,0.00021917,4]
[331072525,1720063846733,-500.0,0.00021917,4]
[331072527,1720063846744,-500.0,0.00021917,4]
[331072528,1720063846754,-500.0,0.00021917,4]
[331072529,1720063846763,-500.0,0.00021917,4]
[331072530,1720063846773,-500.0,0.00021917,4]
[331072531,1720063846782,-507.51576028,0.00021917,4]
[331072532,1720063846792,-229.2366166,0.00021917,4]
[331072533,1720063846802,-506.52780264,0.00021917,4]
[331072534,1720063846811,-500.0,0.00021917,4]
[331072535,1720063846820,-500.0,0.00021917,4]
[331072536,1720063846829,-500.0,0.00021917,4]
[331072537,1720063846839,-500.0,0.00021917,4]
[331072538,1720063846853,-500.0,0.00021917,4]
[331072539,1720063846864,-500.0,0.00021917,4]
[331072540,1720063846873,-500.0,0.00021917,4]
[331072541,1720063846882,-509.84184759,0.00021917,4]
[331072542,1720063846894,-500.0,0.00021917,4]
[331072543,1720063846903,-500.0,0.00021917,4]
[331072544,1720063846914,-500.0,0.00021917,4]
[331072545,1720063846924,-500.0,0.00021917,2]
[331072546,1720063846934,-500.0,0.00021917,4]
[331072547,1720063846943,-500.0,0.00021917,2]
[331072548,1720063846953,-279.19796577,0.00021917,4]
[331072549,1720063846964,-500.0,0.00021917,4]
[331072550,1720063846973,-500.0,0.00021917,2]
[331072551,1720063846983,-209.25710875,0.00021917,4]
[331072552,1720063846992,-500.0,0.00021917,2]
[331072553,1720063847002,-500.0,0.00021917,2]
[331072554,1720063847011,-436.11459955,0.00021917,2]
[331072555,1720063847021,-511.14477806,0.00021917,4]
[331072556,1720063847031,-507.29365231,0.00021917,4]
[331072557,1720063847040,-500.0,0.00021917,4]
[331072558,1720063847049,-500.0,0.00021917,4]
[331072559,1720063847059,-500.0,0.00021917,4]
[331072560,1720063847069,-500.0,0.00021917,4]
[331072561,1720063847078,-500.0,0.00021917,4]
[331072562,1720063847087,-504.99647759,0.00021917,4]
[331072563,1720063847097,-500.0,0.00021917,4]
[331072564,1720063847106,-521.42298791,0.00021917,4]
[331072565,1720063847118,-500.0,0.00021917,4]
[331072566,1720063847128,-500.0,0.00021917,4]
[331072567,1720063847138,-500.0,0.00021917,4]
[331072568,1720063847148,-500.0,0.00021917,4]
[331072569,1720063847158,-500.0,0.00021917,4]
[331072570,1720063847168,-500.0,0.00021917,4]
[331072571,1720063847178,-500.0,0.00021917,4]
[331072572,1720063847188,-180.49969289,0.00021917,4]
[331072573,1720063847198,-500.0,0.00021917,4]
[331072574,1720063847208,-500.0,0.00021917,4]
[331072575,1720063847218,-500.0,0.00021917,4]
[331072576,1720063847228,-500.0,0.00021917,4]
[331072577,1720063847238,-500.0,0.00021917,4]
[331072578,1720063847247,-500.0,0.00021917,4]
[331072579,1720063847257,-500.0,0.00021917,4]
[331072580,1720063847267,-179.84055382,0.00021917,4]
[331072581,1720063847277,-500.0,0.00021917,4]
[331072582,1720063847287,-303.51976014,0.00021917,4]
[331072583,1720063847297,-500.0,0.00021917,4]
[331072584,1720063847307,-500.0,0.00021917,4]
[331072585,1720063847317,-500.0,0.00021917,4]
[331072586,1720063847326,-259.74794813,0.00021917,4]
[331072587,1720063847337,-500.0,0.00021917,4]
[331072588,1720063847346,-500.0,0.00021917,4]
[331072589,1720063847356,-500.0,0.00021917,4]
[331072590,1720063847367,-220.58342234,0.00021917,4]
[331072591,1720063847376,-500.0,0.00021917,4]
[331072592,1720063847386,-501.23970563,0.00021917,4]
[331072593,1720063847396,-500.0,0.00021917,4]
[331072594,1720063847406,-500.0,0.00021917,4]
[331072595,1720063847415,-500.0,0.00021917,4]
[331072596,1720063847426,-500.0,0.00021917,4]
[331072597,1720063847435,-500.0,0.00021917,4]
[331072598,1720063847445,-500.0,0.00021917,4]
[331072599,1720063847454,-500.0,0.00021917,4]
[331072600,1720063847466,-500.0,0.00021917,4]
[331072601,1720063847475,-500.0,0.00021917,4]
[331072602,1720063847485,-500.0,0.00021917,4]
[331072603,1720063847495,-518.0654545,0.00021917,4]
[331072604,1720063847505,-500.0,0.00021917,4]
[331072605,1720063847515,-500.0,0.00021917,4]
[331072606,1720063847525,-500.0,0.00021917,4]
[331072607,1720063847534,-500.0,0.00021917,4]
[331072608,1720063847544,-500.0,0.00021917,4]
[331072609,1720063847554,-500.0,0.00021917,4]
[331072610,1720063847564,-288.99389489,0.00021917,4]
[331072611,1720063847574,-500.0,0.00021917,4]
[331072612,1720063847583,-500.0,0.00021917,4]
[331072613,1720063847593,-500.0,0.00021917,4]
[331072614,1720063847603,-500.0,0.00021917,4]
[331072615,1720063847613,-329.22103878,0.00021917,4]
[331072616,1720063847622,-508.18218749,0.00021917,4]
[331072617,1720063847632,-500.0,0.00021917,4]
[331072618,1720063847643,-506.27620676,0.00021917,4]
[331072619,1720063847652,-524.56197966,0.00021917,4]